{"text_format":"1","workbook":"xlsx","n_sheets":10,"sheets":["INICIO","CARACTERÍSTICA_EMPRESA","CARACTERÍSTICA_PROPIETARIO","FUNDACIÓN","TECNOLOGÍA","VENTAS_PRÁCTICAS","OBSTÁCULOS_EXPECTATIVAS","PROGRAMA_GUBERNAMENTAL","PERCEPCIÓN","TABLA DINAMICA"],"not_rendered":{"charts":27,"images":2,"macros":1,"external_links":0,"defined_names":3,"comments":0,"pivot_tables":48},"unopened":[],"bounds":{"document_bytes":16777216,"sheet_cells":100000,"rows_first":2000,"rows_last":500,"rows_between":2000,"halvings":0,"cell_chars":16384,"cell_head_chars":4096},"cells_cut":0,"cells_raw":0,"read":"whole","date_system":"1900"}

{"sheet":"INICIO","index":0,"n_rows":57,"n_cols":9,"rows_kept":57,"cut":false,"hidden":true,"merged":[[55,5,55,20],[56,5,56,20],[37,8,40,20],[41,5,42,7],[41,8,42,20],[43,5,44,7],[43,8,44,20],[11,5,13,7],[11,8,13,20],[14,5,16,7],[14,8,16,20],[17,5,22,7],[17,8,22,20],[23,5,25,7],[23,8,25,20],[45,5,54,7],[45,8,54,20],[30,5,32,20],[33,5,36,7],[33,8,36,20],[37,5,40,7],[26,5,28,7],[26,8,28,20],[29,5,29,20]]}
[]
[]
[]
[]
[]
[]
[]
[]
[]
[]
[]
[null,null,null,null,null,"MARCO MUESTRAL",null,null,"El marco de muestreo de la encuesta se construye en base al Directorio General de Empresas y Establecimientos (DIRGE) 2021 que el INE actualiza de manera permanente  y  la base a los datos de la Encuesta Permanente de Hogares Continua (EPHC)  2021/2022."]
[]
[]
[null,null,null,null,null,"COBERTURA GEOGRÁFICA",null,null,"La encuesta abarca los territorios de Asunción y el Departamento Central."]
[]
[]
[null,null,null,null,null,"POBLACIÓN OBJETIVO",null,null,"Micro y pequeñas empresas formales, que cuentan con Registro Único del Contribuyente (RUC) de la Dirección Nacional de Ingresos Tributarios (DNIT), anteriormente Secretaría Técnica de Tributación (SET). También incluye a empresas informales, las cuales son dirigidas por Patrones o Empleadores, o Trabajadores por cuenta propia y que no cuentan con RUC. Estas empresas se dedican a diversas actividades como la fabricación de ropa o zapatos, la producción de productos metálicos, la venta de ropa o artículos del hogar, la prestación de servicios de transporte, servicios profesionales, construcción, talleres de autos y motos."]
[]
[]
[]
[]
[]
[null,null,null,null,null,"TAMAÑO DE LA MUESTRA",null,null,"Se seleccionaron 1.000 empresas de tamaño micro y pequeñas en Asunción y el Departamento Central, de las cuales 600 corresponden a empresas formales y 400 empresas informales."]
[]
[]
[null,null,null,null,null,"LEVANTAMIENTO DE LA INFORMACIÓN",null,null,"FORMALES: Entrevista telefónica asistida por un ordenador (CATI).\nINFORMALES: Entrevista personal cara a cara, asistida por un ordenador (CAPI)."]
[]
[]
[null,null,null,null,null,"DEFINICIONES"]
[null,null,null,null,null,"Las definiciones detalladas a continuación corresponden a lo considerado para este estudio, teniendo en cuenta además, lo definido dentro de la Ley N° 4.457/2012 y el Decreto N° 3.698/2020, que establecen los criterios para clasificar el tamaño de las empresas. "]
[]
[]
[null,null,null,null,null,"EMPRESAS FORMALES",null,null,"Está conformada por micro y pequeñas empresas con Registro Único del Contribuyente (RUC), de Asunción y el Departamento Central que realizan actividades económicas en los sectores de fabricación de productos; reventa de bienes y el de provisión de servicios, y se encuentran activas, según el Directorio General de Empresas y Establecimientos (DIRGE 2022), generado por el INE.  "]
[]
[]
[]
[null,null,null,null,null,"EMPRESAS INFORMALES",null,null,"Está conformada por micro y pequeñas empresas sin Registro Único del Contribuyente (RUC), de Asunción y el Departamento Central, dirigidas por Patrones o Empleadores, o Trabajadores por cuenta propia, y que realizan las actividades económicas en los sectores de fabricación de productos; reventa de bienes y el sector de provisión de servicios, y se encuentran en la base de datos de la Encuesta Permanente de Hogares Continua (EPHC 2021/2022), que realiza el INE."]
[]
[]
[]
[null,null,null,null,null,"MICROEMPRESA",null,null,"Incluyen empresas con tramo de facturación anual de hasta guaraníes 646.045.491, o con 1 a 10 personas ocupadas."]
[]
[null,null,null,null,null,"PEQUEÑA EMPRESA",null,null,"Incluyen empresas con tramo de facturación anual de más de guaraníes 646.045.491 hasta guaraníes 3.230.277.453, o con personal ocupado de 11 a 30 personas."]
[]
[null,null,null,null,null,"SECTOR ECONÓMICO DE ACTIVIDAD",null,null,"Para la realización de esta encuesta se considera la agrupación de actividades en tres grandes grupos y según las necesidades establecidadas por el Banco Mundial, diferenciando los clasificadores según tipo de empresa formal e informal; para las empresas formales se utiliza las actividades de la Clasificación Nacional de Actividades Económicas del Paraguay (CNAEP), la cual fue elaborada en base a la CIIU Rev.4. Por otro lado para las empresas informales se utiliza el clasificador que emplea la EPHC, Clasificación de las Actividades Económicas del Paraguay (CAEP). De esta manera los sectores de actividades quedan agrupadas de la siguiente forma: \nFabricación de productos: Fabricación de ropas o zapatos, Fabricación de productos metálicos.\nReventa de Bienes: Venta de ropa o articulos del hogar.\nProvisión de servicios: Servicios de transporte, Servicios profesionales, Construcción, Taller de autos y motos."]
[]
[]
[]
[]
[]
[]
[]
[]
[]
[null,null,null,null,null,"Precisiones sobre los gráficos"]
[null,null,null,null,null,"La suma de los porcentajes puede no coincidir con el 100 % debido al redondeo de las cifras. "]

{"sheet":"CARACTERÍSTICA_EMPRESA","index":1,"n_rows":0,"n_cols":0,"rows_kept":0,"cut":false,"hidden":true,"merged":[]}

{"sheet":"CARACTERÍSTICA_PROPIETARIO","index":2,"n_rows":0,"n_cols":0,"rows_kept":0,"cut":false,"hidden":false,"merged":[]}

{"sheet":"FUNDACIÓN","index":3,"n_rows":0,"n_cols":0,"rows_kept":0,"cut":false,"hidden":true,"merged":[]}

{"sheet":"TECNOLOGÍA","index":4,"n_rows":0,"n_cols":0,"rows_kept":0,"cut":false,"hidden":true,"merged":[]}

{"sheet":"VENTAS_PRÁCTICAS","index":5,"n_rows":0,"n_cols":0,"rows_kept":0,"cut":false,"hidden":true,"merged":[]}

{"sheet":"OBSTÁCULOS_EXPECTATIVAS","index":6,"n_rows":0,"n_cols":0,"rows_kept":0,"cut":false,"hidden":true,"merged":[]}

{"sheet":"PROGRAMA_GUBERNAMENTAL","index":7,"n_rows":0,"n_cols":0,"rows_kept":0,"cut":false,"hidden":true,"merged":[]}

{"sheet":"PERCEPCIÓN","index":8,"n_rows":0,"n_cols":0,"rows_kept":0,"cut":false,"hidden":true,"merged":[]}

{"sheet":"TABLA DINAMICA","index":9,"n_rows":170,"n_cols":16,"rows_kept":170,"cut":false,"hidden":true,"merged":[]}
[]
[]
["Etiquetas de fila","Cuenta de SECTOR_BM",null,"Etiquetas de fila","Cuenta de B1B",null,"Etiquetas de fila","Cuenta de TIPO",null,"Etiquetas de fila","Cuenta de Antigüedad"]
["Fabricación de productos",0.35899999999999999,null,"No",0.60599999999999998,null,"Formales",600,null,"De 0 a 4 años",0.28799999999999998]
["Provisión de servicios",0.44800000000000001,null,"Sí",0.39400000000000002,null,"Informales",400,null,"De 5 a 14 años",0.379]
["Reventa de bienes",0.193,null,"Total general",1,null,"Total general",1000,null,"15 años y más",0.33300000000000002]
["Total general",1,null,null,null,null,null,null,null,"Total general",1]
[]
[]
["Etiquetas de fila","Cuenta de B1A",null,"Etiquetas de fila","Cuenta de B1",null,"Etiquetas de fila","Cuenta de B1A"]
["No",6.6000000000000003E-2,null,"Sí",1,null,"No",6.6000000000000003E-2]
["Sí",0.93400000000000005,null,"Total general",1,null,"Sí",0.93400000000000005]
["Total general",1,null,null,null,null,"Total general",1]
[]
[]
["Etiquetas de fila","Cuenta de B8",null,"Etiquetas de fila","Cuenta de B6",null,"Etiquetas de fila","Cuenta de B3",null,"Etiquetas de fila","Cuenta de B2"]
["No sabe",1.0706638115631692E-3,null,1960,1,null,"Ninguno",4.0000000000000001E-3,null,"Menos de 20 años",3.0000000000000001E-3]
["Otras fuentes",4.2826552462526769E-3,null,1964,1,null,"Educación superior incompleta",0.10100000000000001,null,"Entre 20 y 29 años",8.4000000000000005E-2]
["Financieras",1.0706638115631691E-2,null,1968,1,null,"Educación primaria completa",0.113,null,"Entre 30 y 39 años",0.23499999999999999]
["Prestamistas privados",1.7130620985010708E-2,null,1970,3,null,"Educación secundaria incompleta",0.115,null,"Entre 40 y 49 años",0.24399999999999999]
["Bancos",3.961456102783726E-2,null,1971,1,null,"Educación primaria incompleta",0.13700000000000001,null,"50 o más años",0.434]
["Cooperativas",0.10706638115631692,null,1973,3,null,"Educación superior completa",0.215,null,"Total general",1]
["Amigos o familiares",0.17237687366167023,null,1975,3,null,"Educación secundaria completa",0.315]
["Recursos propios",0.64775160599571735,null,1976,3,null,"Total general",1]
["Total general",1,null,1977,1]
[null,null,null,1978,7]
[null,null,null,1979,1]
[null,null,null,1980,13]
[null,null,null,1981,5]
["Etiquetas de fila","Cuenta de B9",null,1982,5,null,"Etiquetas de fila","Cuenta de B10",null,"Etiquetas de fila","Cuenta de B11"]
["Otro ",3.2119914346895075E-3,null,1983,13,null,"No",0.83499999999999996,null,"No",0.47749999999999998,null,"Cobertura médica","Sí",{"$f":"+IF(ISERROR((+GETPIVOTDATA(\"B11\",$J$30,\"B11\",\"Sí\"))),\"No aplica\",(+GETPIVOTDATA(\"B11\",$J$30,\"B11\",\"Sí\")))","v":0.52249999999999996},{"$f":"+GETPIVOTDATA(\"B12\",$G$36,\"B12\",\"No\")","v":0.40500000000000003}]
["Empleador o patrón",8.5653104925053538E-3,null,1984,4,null,"Sí",0.16500000000000001,null,"Sí",0.52249999999999996,null,null,"No",{"$f":"+IF(ISERROR((+GETPIVOTDATA(\"B11\",$J$30,\"B11\",\"No\"))),\"No aplica\",(+GETPIVOTDATA(\"B11\",$K$30,\"B11\",\"No\")))","v":0.47749999999999998},{"$f":"+GETPIVOTDATA(\"B12\",$G$36,\"B12\",\"Sí\")","v":0.59250000000000003}]
["Empleado/ Obrero Público",6.1027837259100645E-2,null,1985,8,null,"Total general",1,null,"Total general",1,null,"Derecho a jubilación ","Sí",{"$f":"+GETPIVOTDATA(\"B12\",$G$36,\"B12\",\"Sí\")","v":0.59250000000000003}]
["No trabajaba",0.10599571734475374,null,1986,2,null,null,null,null,null,null,null,null,"No",{"$f":"+GETPIVOTDATA(\"B12\",$G$36,\"B12\",\"No\")","v":0.40500000000000003}]
["Trabajador por cuenta propia",0.2569593147751606,null,1987,4]
["Empleado/ Obrero Privado",0.56423982869379019,null,1988,6,null,"Etiquetas de fila","Cuenta de B12"]
["Total general",1,null,1989,5,null,"No sabe",2.5000000000000001E-3,null,"No sabe",{"$f":"+IF(ISERROR((+GETPIVOTDATA(\"B12\",$G$36,\"B12\",\"No sabe\"))),\"No aplica\",(+GETPIVOTDATA(\"B12\",$G$36,\"B12\",\"No sabe\")))","v":2.5000000000000001E-3}]
[null,null,null,1990,18,null,"No",0.40500000000000003,null,"No",{"$f":"+IF(ISERROR((+GETPIVOTDATA(\"B12\",$G$36,\"B12\",\"No\"))),\"No aplica\",(+GETPIVOTDATA(\"B12\",$G$36,\"B12\",\"No\")))","v":0.40500000000000003}]
[null,null,null,1991,6,null,"Sí",0.59250000000000003,null,"Sí",{"$f":"+IF(ISERROR((+GETPIVOTDATA(\"B12\",$G$36,\"B12\",\"Sí\"))),\"No aplica\",(+GETPIVOTDATA(\"B12\",$G$36,\"B12\",\"Sí\")))","v":0.59250000000000003}]
[null,null,null,1992,15,null,"Total general",1,null,"Total general",{"$f":"SUM(K37:K39)","v":1}]
[null,null,null,1993,11]
[null,null,null,1994,4,null,null,null,null,"C1","No"]
[null,null,null,1995,6,null,"Etiquetas de fila","Cuenta de C1"]
[null,null,null,1996,3,null,"No",0.47499999999999998,null,"Etiquetas de fila","Cuenta de C2_1"]
[null,null,null,1997,14,null,"Sí",0.52500000000000002,null,"No sé como montar la estructura de ventas",115]
[null,null,null,1998,25,null,"Total general",1,null,"#¡NULO!",360]
[null,null,null,1999,11,null,null,null,null,"Total general",475,null,"No sabe",{"$f":"+GETPIVOTDATA(\"C2_9\",$J$83,\"C2_9\",\"No sabe\")/GETPIVOTDATA(\"C2_9\",$J$83)","v":4.2105263157894736E-3}]
[null,null,null,2000,22,null,null,null,null,null,null,null,"Otro (falta de tiempo, de capital,\n infraestructura, etc.)",{"$f":"+GETPIVOTDATA(\"C2_5\",$J$76,\"C2_5\",\"Otro (especificar)\")/GETPIVOTDATA(\"C2_5\",$J$76)","v":2.5263157894736842E-2}]
[null,null,null,2001,9,null,null,null,null,null,null,null,"Limitaciones en el acceso/\nconectividad a internet",{"$f":"+GETPIVOTDATA(\"C2_4\",$J$68,\"C2_4\",\"Limitaciones en el acceso/conectividad a internet\")/GETPIVOTDATA(\"C2_4\",$J$68)","v":0.10105263157894737}]
[null,null,null,2002,17,null,null,null,null,null,null,null,"Creo que no es seguro",{"$f":"+GETPIVOTDATA(\"C2_3\",$J$60,\"C2_3\",\"Creo que no es seguro\")/GETPIVOTDATA(\"C2_3\",$J$60)","v":0.1031578947368421}]
[null,null,null,2003,27,null,null,null,null,"C1","No",null,"No sé como montar la estructura\n de ventas",{"$f":"+GETPIVOTDATA(\"C2_1\",$J$44,\"C2_1\",\"No sé como montar la estructura de ventas\")/GETPIVOTDATA(\"C2_1\",$J$44)","v":0.24210526315789474}]
[null,null,null,2004,12,null,null,null,null,null,null,null,"No hay necesidad",{"$f":"+GETPIVOTDATA(\"C2_2\",$J$53,\"C2_2\",\"No hay necesidad\")/GETPIVOTDATA(\"C2_2\",$J$53)","v":0.72210526315789469}]
[null,null,null,2005,15,null,null,null,null,"Etiquetas de fila","Cuenta de C2_2"]
[null,null,null,2006,5,null,null,null,null,"No hay necesidad",343]
[null,null,null,2007,23,null,null,null,null,"#¡NULO!",132]
[null,null,null,2008,34,null,null,null,null,"Total general",475]
[null,null,null,2009,21]
[null,null,null,2010,33,null,null,null,null,"C1","No"]
[null,null,null,2011,25]
[null,null,null,2012,37,null,null,null,null,"Etiquetas de fila","Cuenta de C2_3"]
[null,null,null,2013,57,null,null,null,null,"Creo que no es seguro",49]
[null,null,null,2014,27,null,null,null,null,"#¡NULO!",426]
[null,null,null,2015,59,null,null,null,null,"Total general",475]
[null,null,null,2016,45]
[null,null,null,2017,41]
[null,null,null,2018,79,null,null,null,null,"C1","No"]
[null,null,null,2019,70]
[null,null,null,2020,63,null,null,null,null,"Etiquetas de fila","Cuenta de C2_4"]
[null,null,null,2021,34,null,null,null,null,"Limitaciones en el acceso/conectividad a internet",48]
[null,null,null,2022,42,null,null,null,null,"#¡NULO!",427]
[null,null,null,"Total general",1000,null,null,null,null,"Total general",475]
[]
[]
[null,null,null,null,null,null,null,null,null,"C1","No"]
[null,null,null,"Etiquetas de fila","Cuenta de C3_22"]
[null,null,null,"No",0.66800000000000004,null,null,null,null,"Etiquetas de fila","Cuenta de C2_5"]
[null,null,null,"Sí",0.33200000000000002,null,null,null,null,"Otro (especificar)",12]
[null,null,null,"Total general",1,null,null,null,null,"#¡NULO!",463]
[null,null,null,null,null,null,null,null,null,"Total general",475]
[]
[null,null,null,null,null,null,null,null,null,"C1","No"]
[]
[null,null,null,null,null,null,null,null,null,"Etiquetas de fila","Cuenta de C2_9"]
[null,null,null,null,null,null,null,null,null,"No sabe",2]
["Etiquetas de fila","Cuenta de D1",null,"Etiquetas de fila","Cuenta de D22",null,"Etiquetas de fila","Cuenta de D6",null,"#¡NULO!",473]
["Sí",0.20300000000000001,null,"Sí",0.76500000000000001,null,"No sabe",2.1666666666666667E-2,null,"Total general",475]
["No",0.79700000000000004,null,"No",0.23400000000000001,null,"Los precios de mi empresa son menores",0.15166666666666667]
["Total general",1,null,"No sabe",1E-3,null,"Los precios de mi empresa son mayores",0.17833333333333334]
[null,null,null,"Total general",1,null,"Los precios de mi empresa son similares",0.64833333333333332]
[null,null,null,null,null,null,"Total general",1]
[]
[]
["Etiquetas de fila","Cuenta de D7",null,"Etiquetas de fila","Cuenta de D8",null,"Etiquetas de fila","Cuenta de E4"]
["Ninguno",0.03,null,"Sí",0.71,null,"Aumentaría",0.34799999999999998]
["Menos de la mitad (Menor al 50%)",0.09,null,"No",0.17299999999999999,null,"Disminuiría",4.5999999999999999E-2]
["La mitad (50%)",0.115,null,"Algunas veces",0.10299999999999999,null,"No sabe",8.9999999999999993E-3]
["La mayoría (Mayor al 50%)",0.3,null,"No compra materia prima ni mercaderías",1.0999999999999999E-2,null,"Permanecería igual",0.59699999999999998]
["Todos (100%)",0.46500000000000002,null,"No sabe",3.0000000000000001E-3,null,"Total general",1]
["Total general",1,null,"Total general",1]
[]
[]
[]
["Etiquetas de fila","Cuenta de E5",null,"Etiquetas de fila","Cuenta de E1"]
["Aumentaría",0.66100000000000003,null,"La legislación laboral",0.01,null,"Otro ",{"$f":"+GETPIVOTDATA(\"E1\",$D$103,\"E1\",\"Otro (especifique)\")","v":5.1999999999999998E-2},{"$f":"+H104","v":5.1999999999999998E-2}]
["Permanecería igual",0.25600000000000001,null,"No sabe",1.2E-2,null,"La legislación laboral",{"$f":"+GETPIVOTDATA(\"E1\",$D$103,\"E1\",\"La legislación laboral\")","v":0.01},0.01]
["Disminuiría",7.6999999999999999E-2,null,"Transporte de materiales o personas",1.2999999999999999E-2,null,"No sabe",{"$f":"+GETPIVOTDATA(\"E1\",$D$103,\"E1\",\"No sabe\")","v":1.2E-2},1.2E-2]
["No sabe",6.0000000000000001E-3,null,"Obtener licencias y permisos comerciales",2.4E-2,null,"Transporte de materiales o personas",{"$f":"+GETPIVOTDATA(\"E1\",$D$103,\"E1\",\"Transporte de materiales o personas\")","v":1.2999999999999999E-2},1.2999999999999999E-2]
["Total general",1,null,"Los impuestos",4.1000000000000002E-2,null,"Obtener licencias y permisos comerciales",{"$f":"+GETPIVOTDATA(\"E1\",$D$103,\"E1\",\"Obtener licencias y permisos comerciales\")","v":2.4E-2},2.4E-2]
[null,null,null,"Otro (especifique)",5.1999999999999998E-2,null,"Los impuestos",{"$f":"+GETPIVOTDATA(\"E1\",$D$103,\"E1\",\"Los impuestos\")","v":4.1000000000000002E-2},4.1000000000000002E-2]
[null,null,null,"La corrupción",7.3999999999999996E-2,null,"La corrupción",{"$f":"+GETPIVOTDATA(\"E1\",$D$103,\"E1\",\"La corrupción\")","v":7.3999999999999996E-2},7.3999999999999996E-2]
[null,null,null,"La falta de mano de obra calificada",7.3999999999999996E-2,null,"La falta de mano de obra calificada",{"$f":"+GETPIVOTDATA(\"E1\",$D$103,\"E1\",\"La falta de mano de obra calificada\")","v":7.3999999999999996E-2},7.3999999999999996E-2]
[null,null,null,"Lo pequeño del mercado (no poder llegar a nuevos clientes)",8.1000000000000003E-2,null,"Lo pequeño del mercado (no poder llegar a nuevos clientes)",{"$f":"+GETPIVOTDATA(\"E1\",$D$103,\"E1\",\"Lo pequeño del mercado (no poder llegar a nuevos clientes)\")","v":8.1000000000000003E-2},8.1000000000000003E-2]
[null,null,null,"Delitos, robos y violencia",0.09,null,"Delitos, robos y violencia",{"$f":"+GETPIVOTDATA(\"E1\",$D$103,\"E1\",\"Delitos, robos y violencia\")","v":0.09},0.09]
[null,null,null,"El acceso o abastecimiento de materias primas, insumos o combustibles",0.108,null,"El acceso a materias primas, insumos o combustibles",{"$f":"+GETPIVOTDATA(\"E1\",$D$103,\"E1\",\"El acceso o abastecimiento de materias primas, insumos o combustibles\")","v":0.108},0.108]
[null,null,null,"Prácticas de los competidores",0.17199999999999999,null,"Prácticas de los competidores",{"$f":"+GETPIVOTDATA(\"E1\",$D$103,\"E1\",\"Prácticas de los competidores\")","v":0.17199999999999999},0.17199999999999999]
[null,null,null,"Acceso a crédito",0.249,null,"Acceso a crédito",{"$f":"+GETPIVOTDATA(\"E1\",$D$103,\"E1\",\"Acceso a crédito\")","v":0.249},0.249]
[null,null,null,"Total general",1]
[]
[null,null,null,null,null,null,null,{"$f":"+GETPIVOTDATA(\"E1\",$D$103)","v":1},{"$f":"+H119","v":1}]
[]
["Etiquetas de fila","Cuenta de E6A",null,"Etiquetas de fila","Cuenta de E6C"]
["No",249,null,"No",486]
["No Aplica",4,null,"No Aplica",6]
["No sabe",11,null,"No sabe",15,null,null,"Mejor acceso a financiamiento y préstamos",{"$f":"+GETPIVOTDATA(\"E6A\",$A$121,\"E6A\",\"Sí\")/GETPIVOTDATA(\"E6A\",$A$121)","v":0.73599999999999999}]
["Sí",736,null,"Sí",493,null,null,"Mejor acceso a materias primas, servicios de infraestructura y servicios gubernamentales ",{"$f":"+GETPIVOTDATA(\"E6B\",$A$131,\"E6B\",\"Sí\")/GETPIVOTDATA(\"E6B\",$A$131)","v":0.66600000000000004}]
["Total general",1000,null,"Total general",1000,null,null,"Menores pagos informales ",{"$f":"+GETPIVOTDATA(\"E6C\",$D$121,\"E6C\",\"Sí\")/GETPIVOTDATA(\"E6C\",$D$121)","v":0.49299999999999999}]
[null,null,null,null,null,null,null,"Mejor acceso a potenciales clientes",{"$f":"+GETPIVOTDATA(\"E6D\",$D$131,\"E6D\",\"Sí\")/GETPIVOTDATA(\"E6D\",$D$131)","v":0.76900000000000002}]
[]
[]
[]
["Etiquetas de fila","Cuenta de E6B",null,"Etiquetas de fila","Cuenta de E6D",null,"Etiquetas de fila","Cuenta de E9"]
["No",321,null,"No",223,null,"Permanecería igual",0.53,null,{"$f":"+G132","v":"Permanecería igual"},{"$f":"+GETPIVOTDATA(\"E9\",$G$131,\"E9\",\"Permanecería igual\")","v":0.53}]
["No Aplica",6,null,"No Aplica",4,null,"Aumentaría",0.44500000000000001,null,{"$f":"+G133","v":"Aumentaría"},{"$f":"+GETPIVOTDATA(\"E9\",$G$131,\"E9\",\"Aumentaría\")","v":0.44500000000000001}]
["No sabe",7,null,"No sabe",4,null,"Disminuiría",0.02,null,{"$f":"+G134","v":"Disminuiría"},{"$f":"+GETPIVOTDATA(\"E9\",$G$131,\"E9\",\"Disminuiría\")","v":0.02}]
["Sí",666,null,"Sí",769,null,"No sabe",5.0000000000000001E-3,null,{"$f":"+G135","v":"No sabe"},{"$f":"+GETPIVOTDATA(\"E9\",$G$131,\"E9\",\"No sabe\")","v":5.0000000000000001E-3}]
["Total general",1000,null,"Total general",1000,null,"Total general",1]
[]
[]
[]
[]
["Etiquetas de fila","Cuenta de E7A",null,"Etiquetas de fila","Cuenta de E7D",null,"Centro de Apoyo a Emprendedores",{"$f":"+GETPIVOTDATA(\"E7B\",$A$147,\"E7B\",\"Sí\")/GETPIVOTDATA(\"E7B\",$A$147)","v":0.26400000000000001}]
["No",879,null,"No",868,null,"Fondo de Garantía del Paraguay (FOGAPY)",{"$f":"+GETPIVOTDATA(\"E7C\",$A$153,\"E7C\",\"Sí\")/GETPIVOTDATA(\"E7C\",$A$153)","v":0.19}]
["Sí",121,null,"Sí",132,null,"RESIMPLE",{"$f":"+GETPIVOTDATA(\"E7D\",$D$141,\"E7D\",\"Sí\")/GETPIVOTDATA(\"E7D\",$D$141)","v":0.13200000000000001}]
["Total general",1000,null,"Total general",1000,null,"Empresas por Acción Simplificada",{"$f":"+GETPIVOTDATA(\"E7A\",$A$141,\"E7A\",\"Sí\")/GETPIVOTDATA(\"E7A\",$A$141)","v":0.121}]
[null,null,null,null,null,null,"Exporta Fácil",{"$f":"+GETPIVOTDATA(\"E7E\",$D$147,\"E7E\",\"Sí\")/GETPIVOTDATA(\"E7E\",$D$147)","v":0.10166666666666667}]
[]
["Etiquetas de fila","Cuenta de E7B",null,"Etiquetas de fila","Cuenta de E7E",null,"Etiquetas de fila","Cuenta de E8"]
["No",736,null,"No",539,null,"No",0.19900000000000001]
["Sí",264,null,"Sí",61,null,"No sabe",8.9999999999999993E-3]
["Total general",1000,null,"Total general",600,null,"Sí",0.79200000000000004]
[null,null,null,null,null,null,"Total general",1]
[null,null,null,null,null,null,null,null,null,"Rentabilidad ",{"$f":"+GETPIVOTDATA(\"B7B\",$D$159,\"B7B\",\"Sí\")/GETPIVOTDATA(\"B7B\",$D$159)","v":0.89400428265524623}]
["Etiquetas de fila","Cuenta de E7C",null,"Etiquetas de fila","Cuenta de B7A",null,"Etiquetas de fila","Cuenta de B7D",null,"Ubicación o autonomía ",{"$f":"+GETPIVOTDATA(\"B7A\",$D$153,\"B7A\",\"Sí\")/GETPIVOTDATA(\"B7A\",$D$153)","v":0.83404710920770875}]
["No",810,null,"No",155,null,"No",673,null,"Fuente adicional de ingresos",{"$f":"+GETPIVOTDATA(\"B7C\",$D$165,\"B7C\",\"Sí\")/GETPIVOTDATA(\"B7C\",$D$165)","v":0.68522483940042822}]
["Sí",190,null,"Sí",779,null,"No sabe",1,null,"Dificultad para conseguir empleo",{"$f":"+GETPIVOTDATA(\"B7D\",$G$153,\"B7D\",\"Sí\")/GETPIVOTDATA(\"B7D\",$G$153)","v":0.27837259100642398}]
["Total general",1000,null,"Total general",934,null,"Sí",260,null,"Pérdida de empleo",{"$f":"+GETPIVOTDATA(\"B7E\",$G$160,\"B7E\",\"Sí\")/GETPIVOTDATA(\"B7E\",$G$160)","v":0.14453961456102785}]
[null,null,null,null,null,null,"Total general",934,null,"Otros",{"$f":"+GETPIVOTDATA(\"B7F\",$G$167,\"B7F\",\"Sí\")/GETPIVOTDATA(\"B7F\",$G$167)","v":2.569593147751606E-2}]
[]
[null,null,null,"Etiquetas de fila","Cuenta de B7B"]
[null,null,null,"No",99,null,"Etiquetas de fila","Cuenta de B7E"]
[null,null,null,"Sí",835,null,"No",797]
[null,null,null,"Total general",934,null,"No sabe",2]
[null,null,null,null,null,null,"Sí",135]
[null,null,null,null,null,null,"Total general",934]
[null,null,null,"Etiquetas de fila","Cuenta de B7C"]
[null,null,null,"No",293]
[null,null,null,"No sabe",1,null,"Etiquetas de fila","Cuenta de B7F"]
[null,null,null,"Sí",640,null,"No",910]
[null,null,null,"Total general",934,null,"Sí",24]
[null,null,null,null,null,null,"Total general",934]